[Event "Early-Titled-Tuesday-Blitz-October-24-2023"]
[Site "Chess.com"]
[Date "2023.10.24"]
[Round "8"]
[White "deepfear"]
[Black "miraitrunks"]
[Result "1-0"]
[WhiteElo "1792"]
[BlackElo "2100"]
[TimeControl "180+1"]
[EndTime "9:21:12 PDT"]
[Termination "deepfear won by resignation"]

1. e4 {[%clk 0:02:59.9]} 1... c5 {[%clk 0:02:59.7]} 2. Nc3 {[%clk 0:02:57.7]}
2... Nc6 {[%clk 0:03:00.3]} 3. g3 {[%clk 0:02:58.3]} 3... g6 {[%clk 0:03:00.7]}
4. Bg2 {[%clk 0:02:58.8]} 4... Bg7 {[%clk 0:03:01.6]} 5. d3 {[%clk 0:02:59.3]}
5... e5 {[%clk 0:03:02.1]} 6. Nh3 {[%clk 0:02:46.8]} 6... Nge7 {[%clk
0:03:01.8]} 7. f4 {[%clk 0:02:46.5]} 7... O-O {[%clk 0:03:01.6]} 8. O-O {[%clk
0:02:43.9]} 8... Nd4 {[%clk 0:03:01.5]} 9. f5 {[%clk 0:02:08]} 9... b5 {[%clk
0:02:59.7]} 10. f6 {[%clk 0:02:02.7]} 10... Nec6 {[%clk 0:02:59.6]} 11. fxg7
{[%clk 0:02:00.6]} 11... Kxg7 {[%clk 0:03:00.5]} 12. Nd5 {[%clk 0:01:52.8]}
12... d6 {[%clk 0:03:00.6]} 13. Bg5 {[%clk 0:01:36.3]} 13... Qa5 {[%clk
0:03:00]} 14. Bf6+ {[%clk 0:01:32.9]} 14... Kg8 {[%clk 0:02:59.7]} 15. Qc1
{[%clk 0:01:22.6]} 15... Ne6 {[%clk 0:02:51.9]} 16. Qh6 {[%clk 0:01:09.3]} 16...
Ncd4 {[%clk 0:02:37.4]} 17. Ng5 {[%clk 0:01:01.9]} 1-0

[Event "Early-Titled-Tuesday-Blitz-October-24-2023"]
[Site "Chess.com"]
[Date "2023.10.24"]
[Round "8"]
[White "ShahxaibKhan"]
[Black "NovikovaGalina"]
[Result "0-1"]
[WhiteElo "2406"]
[BlackElo "2441"]
[TimeControl "180+1"]
[EndTime "9:21:37 PDT"]
[Termination "NovikovaGalina won by resignation"]

1. e4 {[%clk 0:03:00.9]} 1... e6 {[%clk 0:02:59.9]} 2. d4 {[%clk 0:02:55.2]}
2... d5 {[%clk 0:03:00.8]} 3. Nd2 {[%clk 0:02:54.7]} 3... Nc6 {[%clk 0:03:00.8]}
4. Ngf3 {[%clk 0:02:53.7]} 4... g5 {[%clk 0:03:01.2]} 5. h3 {[%clk 0:02:48.8]}
5... Qf6 {[%clk 0:02:58.5]} 6. Bb5 {[%clk 0:02:43.8]} 6... Bd7 {[%clk
0:02:58.3]} 7. e5 {[%clk 0:02:42.2]} 7... Qg7 {[%clk 0:02:57]} 8. Qe2 {[%clk
0:02:38.7]} 8... O-O-O {[%clk 0:02:51.8]} 9. Nb3 {[%clk 0:02:37.7]} 9... h6
{[%clk 0:02:49.9]} 10. Bd2 {[%clk 0:02:34]} 10... f6 {[%clk 0:02:49.4]} 11. exf6
{[%clk 0:02:21.9]} 11... Nxf6 {[%clk 0:02:50.3]} 12. Bxc6 {[%clk 0:02:21.3]}
12... Bxc6 {[%clk 0:02:49.1]} 13. Qxe6+ {[%clk 0:02:19]} 13... Bd7 {[%clk
0:02:46.5]} 14. Qe2 {[%clk 0:02:14.5]} 14... Re8 {[%clk 0:02:42.4]} 15. Ne5
{[%clk 0:02:14.4]} 15... Ne4 {[%clk 0:02:33.6]} 16. O-O-O {[%clk 0:02:04.7]}
16... Bd6 {[%clk 0:02:34.2]} 17. Nxd7 {[%clk 0:01:54.5]} 17... Qxd7 {[%clk
0:02:32.4]} 18. Be3 {[%clk 0:01:46.2]} 18... Rhf8 {[%clk 0:02:29.6]} 19. Kb1
{[%clk 0:01:40.3]} 19... Nxf2 {[%clk 0:02:23.8]} 20. Rhf1 {[%clk 0:01:19.7]}
20... Nxd1 {[%clk 0:02:22.5]} 21. Rxf8 {[%clk 0:01:07]} 21... Bxf8 {[%clk
0:02:23.4]} 22. Qxd1 {[%clk 0:01:02.5]} 0-1

[Event "Early-Titled-Tuesday-Blitz-October-24-2023"]
[Site "Chess.com"]
[Date "2023.10.24"]
[Round "8"]
[White "rezamahdavi2008"]
[Black "Byniolus"]
[Result "1/2-1/2"]
[WhiteElo "2895"]
[BlackElo "2810"]
[TimeControl "180+1"]
[EndTime "9:21:46 PDT"]
[Termination "Game drawn by agreement"]

1. Nf3 {[%clk 0:03:00.9]} 1... d5 {[%clk 0:03:00.2]} 2. c4 {[%clk 0:02:56.2]}
2... c6 {[%clk 0:03:00.6]} 3. g3 {[%clk 0:02:56.5]} 3... Nf6 {[%clk 0:03:01.1]}
4. Bg2 {[%clk 0:02:57.2]} 4... Bf5 {[%clk 0:03:01.8]} 5. Qb3 {[%clk 0:02:56.1]}
5... Qb6 {[%clk 0:03:01.8]} 6. d3 {[%clk 0:02:56.6]} 6... e6 {[%clk 0:03:01.1]}
7. Be3 {[%clk 0:02:46.3]} 7... Qxb3 {[%clk 0:03:01]} 8. axb3 {[%clk 0:02:47.2]}
8... a6 {[%clk 0:03:01.7]} 9. Nh4 {[%clk 0:02:45.8]} 9... Bg6 {[%clk 0:02:57.8]}
10. Bd2 {[%clk 0:02:46.5]} 10... Nbd7 {[%clk 0:02:56.4]} 11. b4 {[%clk
0:02:47.2]} 11... Bd6 {[%clk 0:02:52.2]} 12. Nxg6 {[%clk 0:02:47.6]} 12... hxg6
{[%clk 0:02:52.3]} 13. O-O {[%clk 0:02:47.9]} 13... Ke7 {[%clk 0:02:41.3]} 14.
Bc3 {[%clk 0:02:40.7]} 14... Be5 {[%clk 0:02:39.2]} 15. Nd2 {[%clk 0:02:38.8]}
15... d4 {[%clk 0:02:24]} 16. f4 {[%clk 0:02:38.3]} 16... dxc3 {[%clk
0:02:18.5]} 17. fxe5 {[%clk 0:02:36.6]} 17... cxd2 {[%clk 0:01:39.7]} 18. exf6+
{[%clk 0:02:37.5]} 18... Nxf6 {[%clk 0:01:40.4]} 19. Rfd1 {[%clk 0:02:37.7]}
19... Ng4 {[%clk 0:01:32.3]} 20. h3 {[%clk 0:02:34.8]} 20... Ne3 {[%clk
0:01:30.1]} 21. Rxd2 {[%clk 0:02:34.7]} 21... Nxg2 {[%clk 0:01:29.8]} 22. Kxg2
{[%clk 0:02:34.2]} 22... e5 {[%clk 0:01:23.6]} 23. Ra5 {[%clk 0:02:33.1]} 23...
f6 {[%clk 0:01:17]} 24. b3 {[%clk 0:02:32.9]} 24... Rad8 {[%clk 0:01:12.8]} 25.
Rda2 {[%clk 0:02:30.6]} 25... Rd7 {[%clk 0:00:57.7]} 1/2-1/2

[Event "Early-Titled-Tuesday-Blitz-October-24-2023"]
[Site "Chess.com"]
[Date "2023.10.24"]
[Round "8"]
[White "wannabe2700"]
[Black "noblerone"]
[Result "1-0"]
[WhiteElo "2636"]
[BlackElo "2515"]
[TimeControl "180+1"]
[EndTime "9:21:52 PDT"]
[Termination "wannabe2700 won by resignation"]

1. e4 {[%clk 0:03:00.9]} 1... c5 {[%clk 0:02:57.1]} 2. Nf3 {[%clk 0:03:01]} 2...
e6 {[%clk 0:02:56.6]} 3. g3 {[%clk 0:02:58.7]} 3... Nc6 {[%clk 0:02:51.1]} 4.
Bg2 {[%clk 0:02:58.6]} 4... b6 {[%clk 0:02:50.1]} 5. O-O {[%clk 0:02:58]} 5...
Bb7 {[%clk 0:02:49.9]} 6. Re1 {[%clk 0:02:55.9]} 6... d6 {[%clk 0:02:48.8]} 7.
d4 {[%clk 0:02:55.9]} 7... cxd4 {[%clk 0:02:48.8]} 8. Nxd4 {[%clk 0:02:56.8]}
8... e5 {[%clk 0:02:48.6]} 9. Nf5 {[%clk 0:02:56.2]} 9... g6 {[%clk 0:02:48]}
10. Ne3 {[%clk 0:02:56.4]} 10... Nf6 {[%clk 0:02:46.3]} 11. b3 {[%clk
0:02:54.4]} 11... Be7 {[%clk 0:02:42.1]} 12. Ba3 {[%clk 0:02:54.5]} 12... Qc7
{[%clk 0:02:34.5]} 13. Nc3 {[%clk 0:02:50.4]} 13... a6 {[%clk 0:02:34.2]} 14.
Ncd5 {[%clk 0:02:50.3]} 14... Nxd5 {[%clk 0:02:32.8]} 15. Nxd5 {[%clk
0:02:51.2]} 15... Qd8 {[%clk 0:02:33.4]} 16. Nxe7 {[%clk 0:02:50.8]} 16... Kxe7
{[%clk 0:02:33.8]} 17. f4 {[%clk 0:02:49.1]} 17... f6 {[%clk 0:02:25.5]} 18. Qd2
{[%clk 0:02:48.6]} 18... Qc7 {[%clk 0:02:17.5]} 19. Rad1 {[%clk 0:02:47.3]}
19... Rad8 {[%clk 0:02:17.4]} 20. Re3 {[%clk 0:02:45.7]} 20... b5 {[%clk
0:02:10.2]} 21. fxe5 {[%clk 0:02:43.8]} 21... Nxe5 {[%clk 0:02:05.5]} 22. Qd4
{[%clk 0:02:36.8]} 22... a5 {[%clk 0:01:26.5]} 23. Rc3 {[%clk 0:02:32.7]} 23...
Qb8 {[%clk 0:01:20.1]} 24. Qb6 {[%clk 0:02:26.9]} 24... b4 {[%clk 0:01:15.5]}
25. Rc7+ {[%clk 0:02:26.2]} 25... Rd7 {[%clk 0:01:16.1]} 26. Qxd6+ {[%clk
0:02:21.1]} 1-0

[Event "Early-Titled-Tuesday-Blitz-October-24-2023"]
[Site "Chess.com"]
[Date "2023.10.24"]
[Round "8"]
[White "KVAIDAN"]
[Black "aranibos"]
[Result "1-0"]
[WhiteElo "2381"]
[BlackElo "2281"]
[TimeControl "180+1"]
[EndTime "9:21:52 PDT"]
[Termination "KVAIDAN won by resignation"]

1. f4 {[%clk 0:03:00.9]} 1... d5 {[%clk 0:02:57.3]} 2. Nf3 {[%clk 0:03:00.7]}
2... c5 {[%clk 0:02:56.8]} 3. e3 {[%clk 0:03:01.1]} 3... Nc6 {[%clk 0:02:56.7]}
4. Bb5 {[%clk 0:03:01.2]} 4... a6 {[%clk 0:02:56.8]} 5. Bxc6+ {[%clk 0:03:01.1]}
5... bxc6 {[%clk 0:02:57.5]} 6. b3 {[%clk 0:03:01.7]} 6... e6 {[%clk 0:02:57.6]}
7. Bb2 {[%clk 0:03:02.3]} 7... Nf6 {[%clk 0:02:58]} 8. O-O {[%clk 0:03:02.9]}
8... Be7 {[%clk 0:02:58.2]} 9. Ne5 {[%clk 0:03:03.5]} 9... Qc7 {[%clk
0:02:56.7]} 10. Rf3 {[%clk 0:03:03.5]} 10... Rb8 {[%clk 0:02:56.6]} 11. Rg3
{[%clk 0:03:03.6]} 11... g6 {[%clk 0:02:16.8]} 12. d3 {[%clk 0:03:00.6]} 12...
O-O {[%clk 0:02:07.1]} 13. Rh3 {[%clk 0:02:55.2]} 13... c4 {[%clk 0:01:50.2]}
14. Nd2 {[%clk 0:02:49.9]} 14... cxd3 {[%clk 0:01:46.9]} 15. cxd3 {[%clk
0:02:46.2]} 15... Ne8 {[%clk 0:01:13]} 16. Nxc6 {[%clk 0:02:37.7]} 16... Qxc6
{[%clk 0:01:09.6]} 17. Rc1 {[%clk 0:02:29]} 17... Qd7 {[%clk 0:01:07.9]} 18. Qh5
{[%clk 0:02:26.9]} 1-0

[Event "Early-Titled-Tuesday-Blitz-October-24-2023"]
[Site "Chess.com"]
[Date "2023.10.24"]
[Round "8"]
[White "CHENNAIBOND"]
[Black "Arimin1329"]
[Result "0-1"]
[WhiteElo "1690"]
[BlackElo "2316"]
[TimeControl "180+1"]
[EndTime "9:22:06 PDT"]
[Termination "Arimin1329 won by resignation"]

1. e4 {[%clk 0:03:00.9]} 1... c6 {[%clk 0:02:56.5]} 2. d4 {[%clk 0:02:57.5]}
2... d5 {[%clk 0:02:57.4]} 3. e5 {[%clk 0:02:57.9]} 3... Bf5 {[%clk 0:02:54.2]}
4. Nf3 {[%clk 0:02:53.9]} 4... e6 {[%clk 0:02:54.7]} 5. Be2 {[%clk 0:02:53.7]}
5... h6 {[%clk 0:02:55.1]} 6. O-O {[%clk 0:02:53.1]} 6... c5 {[%clk 0:02:56]} 7.
c3 {[%clk 0:02:48.8]} 7... Nc6 {[%clk 0:02:56.4]} 8. a3 {[%clk 0:02:48.7]} 8...
Rc8 {[%clk 0:02:55.8]} 9. Be3 {[%clk 0:02:37.9]} 9... Qb6 {[%clk 0:02:54.7]} 10.
b4 {[%clk 0:02:36.3]} 10... cxd4 {[%clk 0:02:53.9]} 11. Nxd4 {[%clk 0:02:12.3]}
11... Nxd4 {[%clk 0:02:52.6]} 12. Bxd4 {[%clk 0:02:05.9]} 12... Qc7 {[%clk
0:02:52.8]} 13. Bb5+ {[%clk 0:02:01.4]} 13... Kd8 {[%clk 0:02:52]} 14. Qe2
{[%clk 0:01:08.3]} 14... a6 {[%clk 0:02:50.8]} 15. Bd3 {[%clk 0:01:08.4]} 15...
Ne7 {[%clk 0:02:50.9]} 16. a4 {[%clk 0:00:55.8]} 16... g5 {[%clk 0:02:47.6]} 17.
a5 {[%clk 0:00:50.3]} 17... Ke8 {[%clk 0:02:40.6]} 18. Bb6 {[%clk 0:00:21.6]}
18... Bxd3 {[%clk 0:02:38.4]} 19. Qxd3 {[%clk 0:00:20.8]} 19... Qxe5 {[%clk
0:02:38.8]} 20. b5 {[%clk 0:00:17.7]} 20... Qf5 {[%clk 0:02:34.1]} 21. Qxf5
{[%clk 0:00:16.6]} 21... Nxf5 {[%clk 0:02:32.9]} 22. bxa6 {[%clk 0:00:17.5]}
22... bxa6 {[%clk 0:02:33.2]} 0-1

[Event "Early-Titled-Tuesday-Blitz-October-24-2023"]
[Site "Chess.com"]
[Date "2023.10.24"]
[Round "8"]
[White "Aswathchess"]
[Black "artin10862"]
[Result "1-0"]
[WhiteElo "2671"]
[BlackElo "2855"]
[TimeControl "180+1"]
[EndTime "9:22:25 PDT"]
[Termination "Aswathchess won by checkmate"]

1. e4 {[%clk 0:03:00.9]} 1... c5 {[%clk 0:02:59.5]} 2. Nc3 {[%clk 0:02:59.8]}
2... e6 {[%clk 0:02:58.2]} 3. Nf3 {[%clk 0:02:55.5]} 3... a6 {[%clk 0:02:56.9]}
4. g3 {[%clk 0:02:55.2]} 4... b5 {[%clk 0:02:56.4]} 5. Bg2 {[%clk 0:02:55.6]}
5... Bb7 {[%clk 0:02:57.1]} 6. O-O {[%clk 0:02:55.7]} 6... b4 {[%clk 0:02:56.6]}
7. Na4 {[%clk 0:02:55.8]} 7... Bxe4 {[%clk 0:02:56.6]} 8. d4 {[%clk 0:02:45.2]}
8... cxd4 {[%clk 0:02:53.9]} 9. Qxd4 {[%clk 0:02:39.2]} 9... Nf6 {[%clk
0:02:37.2]} 10. Bg5 {[%clk 0:02:32.8]} 10... Nc6 {[%clk 0:02:35.8]} 11. Qe3
{[%clk 0:02:26.1]} 11... d5 {[%clk 0:02:34.6]} 12. Rad1 {[%clk 0:02:18.3]} 12...
Bxc2 {[%clk 0:02:33.6]} 13. Nb6 {[%clk 0:02:06.5]} 13... Bxd1 {[%clk 0:02:30.8]}
14. Rxd1 {[%clk 0:01:56.6]} 14... Rb8 {[%clk 0:02:27.2]} 15. Nc4 {[%clk
0:01:06.6]} 15... Be7 {[%clk 0:02:24.4]} 16. Nce5 {[%clk 0:01:06.7]} 16... Nxe5
{[%clk 0:02:22.1]} 17. Nxe5 {[%clk 0:01:07.6]} 17... Ng4 {[%clk 0:02:21.9]} 18.
Qa7 {[%clk 0:00:23.9]} 18... Bxg5 {[%clk 0:02:07.3]} 19. Qxf7# {[%clk
0:00:22.9]} 1-0

[Event "Early-Titled-Tuesday-Blitz-October-24-2023"]
[Site "Chess.com"]
[Date "2023.10.24"]
[Round "8"]
[White "Alina_Gumerovna"]
[Black "ideika"]
[Result "1-0"]
[WhiteElo "2122"]
[BlackElo "2276"]
[TimeControl "180+1"]
[EndTime "9:22:40 PDT"]
[Termination "Alina_Gumerovna won by resignation"]

1. e4 {[%clk 0:03:00]} 1... e5 {[%clk 0:02:59.8]} 2. Nf3 {[%clk 0:02:58.3]} 2...
Nc6 {[%clk 0:02:59.9]} 3. d4 {[%clk 0:02:58.7]} 3... exd4 {[%clk 0:03:00.1]} 4.
Nxd4 {[%clk 0:02:59.6]} 4... Bc5 {[%clk 0:03:00]} 5. Be3 {[%clk 0:02:57.1]} 5...
Qf6 {[%clk 0:02:59.3]} 6. c3 {[%clk 0:02:57]} 6... Nge7 {[%clk 0:02:57.7]} 7. b4
{[%clk 0:02:41.7]} 7... Bb6 {[%clk 0:02:16.9]} 8. a3 {[%clk 0:02:32.6]} 8... d5
{[%clk 0:02:12.7]} 9. Nc2 {[%clk 0:01:48.7]} 9... Bxe3 {[%clk 0:02:07.7]} 10.
Nxe3 {[%clk 0:01:49.6]} 10... dxe4 {[%clk 0:02:05.5]} 11. Bb5 {[%clk 0:01:48.9]}
11... a6 {[%clk 0:02:04.3]} 12. Ba4 {[%clk 0:01:48.1]} 12... Qg6 {[%clk
0:01:16]} 13. O-O {[%clk 0:01:45.6]} 13... Bd7 {[%clk 0:01:14.4]} 14. c4 {[%clk
0:01:39.9]} 14... Rd8 {[%clk 0:01:06.2]} 15. Bxc6 {[%clk 0:01:34.4]} 15... Nxc6
{[%clk 0:01:06]} 16. Nc3 {[%clk 0:01:31.5]} 16... O-O {[%clk 0:01:02.2]} 17.
Ncd5 {[%clk 0:01:30.2]} 17... f5 {[%clk 0:01:00.6]} 18. b5 {[%clk 0:01:25.5]}
18... axb5 {[%clk 0:00:58.3]} 19. cxb5 {[%clk 0:01:26.4]} 19... Ne5 {[%clk
0:00:57.1]} 20. Ne7+ {[%clk 0:01:26]} 1-0

[Event "Early-Titled-Tuesday-Blitz-October-24-2023"]
[Site "Chess.com"]
[Date "2023.10.24"]
[Round "8"]
[White "Beca95"]
[Black "ukchessbomber"]
[Result "1-0"]
[WhiteElo "2919"]
[BlackElo "2651"]
[TimeControl "180+1"]
[EndTime "9:22:59 PDT"]
[Termination "Beca95 won by checkmate"]

1. e4 {[%clk 0:03:00.9]} 1... a6 {[%clk 0:02:59.6]} 2. d4 {[%clk 0:02:59.1]}
2... b6 {[%clk 0:02:58.1]} 3. c4 {[%clk 0:02:58.2]} 3... Bb7 {[%clk 0:02:57.3]}
4. Nc3 {[%clk 0:02:58.6]} 4... e6 {[%clk 0:02:54.6]} 5. Bd3 {[%clk 0:02:58]}
5... d6 {[%clk 0:02:54.5]} 6. f4 {[%clk 0:02:55]} 6... Nd7 {[%clk 0:02:55]} 7.
Nf3 {[%clk 0:02:54.5]} 7... g6 {[%clk 0:02:55.9]} 8. O-O {[%clk 0:02:49.3]} 8...
Bg7 {[%clk 0:02:56.3]} 9. Kh1 {[%clk 0:02:37.1]} 9... Nh6 {[%clk 0:02:47.7]} 10.
f5 {[%clk 0:02:26.8]} 10... Qe7 {[%clk 0:02:03.5]} 11. Bg5 {[%clk 0:02:24.8]}
11... f6 {[%clk 0:02:03.8]} 12. fxe6 {[%clk 0:02:18.2]} 12... fxg5 {[%clk
0:01:56.5]} 13. exd7+ {[%clk 0:02:16.9]} 13... Kxd7 {[%clk 0:01:57.4]} 14. Nd5
{[%clk 0:02:08.7]} 14... Qd8 {[%clk 0:01:39.9]} 15. e5 {[%clk 0:02:08.7]} 15...
g4 {[%clk 0:01:29.5]} 16. exd6 {[%clk 0:01:44.4]} 16... gxf3 {[%clk 0:01:17.8]}
17. Qxf3 {[%clk 0:01:44]} 17... Bxd5 {[%clk 0:00:26.7]} 18. cxd5 {[%clk
0:01:40.8]} 18... Rf8 {[%clk 0:00:15.2]} 19. Qh3+ {[%clk 0:01:39.3]} 19... Kxd6
{[%clk 0:00:15.7]} 20. Qe6# {[%clk 0:01:38.4]} 1-0

[Event "Early-Titled-Tuesday-Blitz-October-24-2023"]
[Site "Chess.com"]
[Date "2023.10.24"]
[Round "8"]
[White "HajiyevKanan"]
[Black "Noki102"]
[Result "0-1"]
[WhiteElo "2551"]
[BlackElo "2438"]
[TimeControl "180+1"]
[EndTime "9:23:07 PDT"]
[Termination "Noki102 won by resignation"]

1. d4 {[%clk 0:03:00.1]} 1... d5 {[%clk 0:02:58.9]} 2. Nf3 {[%clk 0:02:59.9]}
2... Nf6 {[%clk 0:02:58.7]} 3. c4 {[%clk 0:03:00.8]} 3... e6 {[%clk 0:02:56]} 4.
cxd5 {[%clk 0:03:00.9]} 4... exd5 {[%clk 0:02:55.9]} 5. Nc3 {[%clk 0:03:01.6]}
5... Be7 {[%clk 0:02:55.4]} 6. Bf4 {[%clk 0:03:00.2]} 6... O-O {[%clk
0:02:55.5]} 7. Qc2 {[%clk 0:02:58.5]} 7... Nc6 {[%clk 0:02:52.3]} 8. e3 {[%clk
0:02:58.3]} 8... Nb4 {[%clk 0:02:51]} 9. Qb3 {[%clk 0:02:54.4]} 9... Bf5 {[%clk
0:02:49.8]} 10. Rc1 {[%clk 0:02:35.7]} 10... a5 {[%clk 0:02:40.9]} 11. Ne5
{[%clk 0:02:27.4]} 11... Nh5 {[%clk 0:02:21.8]} 12. a3 {[%clk 0:02:17]} 12...
Nxf4 {[%clk 0:02:03.9]} 13. axb4 {[%clk 0:02:12.8]} 13... axb4 {[%clk
0:01:57.4]} 14. exf4 {[%clk 0:02:09.5]} 14... bxc3 {[%clk 0:01:56.5]} 15. bxc3
{[%clk 0:02:09.2]} 15... f6 {[%clk 0:01:46.7]} 16. Nf3 {[%clk 0:02:07.4]} 16...
Ba3 {[%clk 0:01:44.3]} 17. Ra1 {[%clk 0:01:53.3]} 17... Re8+ {[%clk 0:01:44]}
18. Kd2 {[%clk 0:01:50.1]} 18... Bd6 {[%clk 0:01:32]} 19. Bd3 {[%clk 0:01:19.7]}
19... Bxf4+ {[%clk 0:01:28.9]} 20. Kc2 {[%clk 0:01:07.2]} 20... Re2+ {[%clk
0:01:28.6]} 21. Kd1 {[%clk 0:01:02.8]} 21... Bxd3 {[%clk 0:01:19.7]} 22. Rxa8
{[%clk 0:00:57.9]} 22... Qxa8 {[%clk 0:01:20.6]} 23. Qxd5+ {[%clk 0:00:57.4]}
23... Kh8 {[%clk 0:01:16.8]} 0-1

[Event "Early-Titled-Tuesday-Blitz-October-24-2023"]
[Site "Chess.com"]
[Date "2023.10.24"]
[Round "8"]
[White "salomez"]
[Black "pankajfm"]
[Result "1-0"]
[WhiteElo "2347"]
[BlackElo "2173"]
[TimeControl "180+1"]
[EndTime "9:23:22 PDT"]
[Termination "salomez won by resignation"]

1. e4 {[%clk 0:02:52.6]} 1... c5 {[%clk 0:02:59.4]} 2. Nf3 {[%clk 0:02:50.7]}
2... d6 {[%clk 0:02:59]} 3. d4 {[%clk 0:02:46.8]} 3... cxd4 {[%clk 0:02:59.9]}
4. Nxd4 {[%clk 0:02:46]} 4... Nf6 {[%clk 0:03:00]} 5. Nc3 {[%clk 0:02:42.3]}
5... a6 {[%clk 0:03:00.2]} 6. Bc4 {[%clk 0:02:39.2]} 6... e6 {[%clk 0:02:59.2]}
7. a4 {[%clk 0:02:37.9]} 7... Qc7 {[%clk 0:02:58]} 8. Qe2 {[%clk 0:02:34]} 8...
Nbd7 {[%clk 0:02:58.4]} 9. O-O {[%clk 0:02:31.1]} 9... b6 {[%clk 0:02:58.3]} 10.
f4 {[%clk 0:02:23.6]} 10... Bb7 {[%clk 0:02:56]} 11. f5 {[%clk 0:02:22.4]} 11...
Ne5 {[%clk 0:02:38.6]} 12. Bd3 {[%clk 0:02:14.5]} 12... Qc5 {[%clk 0:02:21]} 13.
Be3 {[%clk 0:02:10.8]} 13... Neg4 {[%clk 0:02:19.7]} 14. fxe6 {[%clk 0:02:07.7]}
14... fxe6 {[%clk 0:02:11.8]} 15. Rxf6 {[%clk 0:01:43]} 15... Nxe3 {[%clk
0:01:58]} 16. Rxe6+ {[%clk 0:01:39.7]} 16... Kd7 {[%clk 0:01:56]} 17. Qxe3
{[%clk 0:01:38.4]} 17... Be7 {[%clk 0:01:21.6]} 18. e5 {[%clk 0:01:17.5]} 18...
Bg5 {[%clk 0:01:08.6]} 19. Rxd6+ {[%clk 0:01:00.1]} 19... Qxd6 {[%clk
0:01:08.4]} 20. Qh3+ {[%clk 0:00:59.3]} 20... Kd8 {[%clk 0:00:50.3]} 21. exd6
{[%clk 0:01:00.2]} 1-0

[Event "Early-Titled-Tuesday-Blitz-October-24-2023"]
[Site "Chess.com"]
[Date "2023.10.24"]
[Round "8"]
[White "Zhigalko_Sergei"]
[Black "lefonghua"]
[Result "1-0"]
[WhiteElo "2964"]
[BlackElo "2697"]
[TimeControl "180+1"]
[EndTime "9:23:28 PDT"]
[Termination "Zhigalko_Sergei won by resignation"]

1. e4 {[%clk 0:03:00.9]} 1... c5 {[%clk 0:02:54.7]} 2. Nf3 {[%clk 0:02:59.6]}
2... g6 {[%clk 0:02:54.5]} 3. c3 {[%clk 0:02:59.9]} 3... Nc6 {[%clk 0:02:55]} 4.
d4 {[%clk 0:02:59.8]} 4... d5 {[%clk 0:02:55.4]} 5. exd5 {[%clk 0:02:59.2]} 5...
Qxd5 {[%clk 0:02:55.3]} 6. Na3 {[%clk 0:02:59.8]} 6... Bg4 {[%clk 0:02:54.4]} 7.
Be2 {[%clk 0:02:54.6]} 7... cxd4 {[%clk 0:02:41.9]} 8. O-O {[%clk 0:02:48.9]}
8... a6 {[%clk 0:02:25.5]} 9. h3 {[%clk 0:02:42.7]} 9... Bxf3 {[%clk 0:02:21.3]}
10. Bxf3 {[%clk 0:02:43.6]} 10... Qd8 {[%clk 0:02:19.2]} 11. Qa4 {[%clk
0:02:20.8]} 11... Rc8 {[%clk 0:02:12.9]} 12. Rd1 {[%clk 0:02:15.7]} 12... Nf6
{[%clk 0:02:04.1]} 13. cxd4 {[%clk 0:01:36.6]} 13... Nd5 {[%clk 0:01:51.3]} 14.
Qb3 {[%clk 0:01:28.6]} 14... e6 {[%clk 0:01:35.5]} 15. Qxb7 {[%clk 0:01:20.9]}
15... Bg7 {[%clk 0:01:25.4]} 16. Bxd5 {[%clk 0:01:17.7]} 16... exd5 {[%clk
0:01:21.5]} 17. Re1+ {[%clk 0:01:02.6]} 17... Kf8 {[%clk 0:01:18.6]} 18. Bg5
{[%clk 0:01:00.6]} 18... Qc7 {[%clk 0:01:13.8]} 19. Qxa6 {[%clk 0:00:58.2]}
19... Bxd4 {[%clk 0:01:06.1]} 20. Nb5 {[%clk 0:00:36.6]} 20... Qd7 {[%clk
0:00:59.9]} 21. Nxd4 {[%clk 0:00:31.6]} 21... Nxd4 {[%clk 0:01:00.4]} 22. Qf6
{[%clk 0:00:31.5]} 1-0

[Event "Early-Titled-Tuesday-Blitz-October-24-2023"]
[Site "Chess.com"]
[Date "2023.10.24"]
[Round "8"]
[White "SashaKuzhilniy"]
[Black "Ranindu2003"]
[Result "0-1"]
[WhiteElo "2646"]
[BlackElo "2811"]
[TimeControl "180+1"]
[EndTime "9:23:30 PDT"]
[Termination "Ranindu2003 won by resignation"]

1. b3 {[%clk 0:03:00.9]} 1... e5 {[%clk 0:02:52.6]} 2. Bb2 {[%clk 0:03:01.3]}
2... Nc6 {[%clk 0:02:53.2]} 3. e3 {[%clk 0:03:00.3]} 3... Nf6 {[%clk 0:02:53.6]}
4. Bc4 {[%clk 0:03:00.3]} 4... d5 {[%clk 0:02:53.3]} 5. Bb5 {[%clk 0:03:00.8]}
5... Bd6 {[%clk 0:02:52.8]} 6. Nf3 {[%clk 0:02:59.9]} 6... e4 {[%clk 0:02:51.1]}
7. Ne5 {[%clk 0:02:59.1]} 7... O-O {[%clk 0:02:45]} 8. Nxc6 {[%clk 0:02:57.9]}
8... bxc6 {[%clk 0:02:45.9]} 9. Bxc6 {[%clk 0:02:58.8]} 9... Rb8 {[%clk
0:02:44.7]} 10. Nc3 {[%clk 0:02:55.2]} 10... Be5 {[%clk 0:02:37.9]} 11. d4
{[%clk 0:02:51.8]} 11... exd3 {[%clk 0:02:25.4]} 12. Qxd3 {[%clk 0:02:50.8]}
12... Qd6 {[%clk 0:02:11.9]} 13. Ba4 {[%clk 0:02:46.3]} 13... Ba6 {[%clk
0:01:53.9]} 14. Qf5 {[%clk 0:02:31.6]} 14... g6 {[%clk 0:01:52.4]} 15. Qg5
{[%clk 0:02:31]} 15... h6 {[%clk 0:01:42.7]} 16. Qxh6 {[%clk 0:02:28.4]} 16...
Qb4 {[%clk 0:01:42.1]} 17. f3 {[%clk 0:01:22.7]} 17... Bxc3+ {[%clk 0:01:38.7]}
18. Bxc3 {[%clk 0:01:23.6]} 18... Qxc3+ {[%clk 0:01:39.4]} 19. Kf2 {[%clk
0:01:24.5]} 19... Qxc2+ {[%clk 0:01:34.2]} 20. Kg3 {[%clk 0:01:24.9]} 20... Nh5+
{[%clk 0:01:29.2]} 21. Kh3 {[%clk 0:01:23.6]} 21... Qf5+ {[%clk 0:01:17]} 22.
Kh4 {[%clk 0:01:24]} 22... Rb4+ {[%clk 0:01:10.8]} 23. e4 {[%clk 0:01:22.3]}
23... dxe4 {[%clk 0:01:02.9]} 24. g4 {[%clk 0:01:21.4]} 24... exf3 {[%clk
0:01:02]} 25. h3 {[%clk 0:01:17]} 25... f2 {[%clk 0:00:47.7]} 26. Qd2 {[%clk
0:01:05]} 26... Qf6+ {[%clk 0:00:47.2]} 27. Qg5 {[%clk 0:01:04.3]} 27... Qxg5+
{[%clk 0:00:47.9]} 28. Kxg5 {[%clk 0:01:05.2]} 28... Ng3 {[%clk 0:00:48.6]} 0-1